bitfinex/quotes_SOLUSD_20230105
["timestamp","ask_amount","ask_price","bid_price","bid_amount"]
[1672911661439,39.8,13.073,13.062,133.7742]
[1672911663237,200.2,13.07,13.055,20.0]
[1672911663571,59.83,13.069,13.055,20.0]
[1672911663972,59.83,13.069,13.055,77.49]
[1672911664195,20.0,13.069,13.058,20.0]
[1672911664406,59.83,13.069,13.06,20.0]
[1672911666192,59.83,13.069,13.058,77.48]
[1672911666193,59.83,13.069,13.058,57.48]
[1672911666404,59.83,13.069,13.057,20.0]
[1672911667874,59.83,13.069,13.057,42.41737149]
[1672911668087,59.83,13.069,13.059,20.0]
[1672911668501,59.83,13.069,13.058,119.7274]
[1672911668720,59.83,13.069,13.056,20.0]
[1672911669328,39.83,13.069,13.056,20.0]
[1672911673028,20.0,13.068,13.056,20.0]
[1672911673342,39.82,13.067,13.056,20.0]
[1672911673536,20.0,13.066,13.056,20.0]
[1672911673967,39.81,13.069,13.056,20.0]
[1672911674172,39.81,13.069,13.057,57.48]
[1672911674510,39.81,13.069,13.058,20.0]
[1672911674723,40.19,13.07,13.058,20.0]
[1672911674908,39.82,13.069,13.059,57.47]
[1672911675113,39.82,13.069,13.06,20.0]
[1672911675329,40.19,13.07,13.06,20.0]
[1672911676278,39.82,13.069,13.06,20.0]
[1672911678420,40.19,13.07,13.06,20.0]
[1672911678607,39.82,13.069,13.06,20.0]
[1672911680084,40.19,13.07,13.06,20.0]
[1672911682283,39.83,13.069,13.059,20.0]
[1672911687434,40.19,13.07,13.059,77.47]
[1672911687630,39.82,13.069,13.059,77.47]
[1672911688580,331.41720896,13.091,13.059,77.47]
[1672911688581,39.81,13.072,13.061,20.0]
[1672911688796,39.8,13.075,13.061,77.46]
[1672911689008,20.0,13.074,13.063,20.0]
[1672911689325,39.81,13.073,13.063,20.0]
[1672911689645,20.0,13.072,13.063,20.0]
[1672911689834,39.82,13.071,13.063,20.0]
[1672911690046,20.0,13.072,13.063,20.0]
[1672911690255,20.0,13.074,13.063,20.0]
[1672911690466,39.82,13.073,13.063,20.0]
[1672911690681,20.0,13.072,13.063,20.0]
[1672911691117,20.0,13.072,13.064,57.45]
[1672911691314,20.0,13.075,13.064,57.45]
[1672911691525,59.81,13.075,13.064,57.45]
[1672911691748,59.81,13.075,13.063,77.45]
[1672911691947,39.83,13.07,13.063,77.45]
[1672911692884,59.81,13.075,13.063,77.45]
[1672911695524,20.0,13.075,13.063,77.45]
[1672911695742,39.83,13.074,13.063,77.45]
[1672911695931,20.0,13.073,13.063,77.45]
[1672911696142,39.81,13.079,13.063,77.45]
[1672911696349,59.82,13.075,13.063,77.45]
[1672911697112,20.0,13.075,13.063,77.45]
[1672911697633,59.82,13.075,13.063,77.45]
[1672911698371,59.82,13.075,13.063,57.45]
[1672911698586,39.83,13.07,13.063,57.45]
[1672911698797,39.83,13.07,13.062,110.9537]
[1672911699927,39.83,13.07,13.064,20.0]
[1672911700764,39.83,13.07,13.063,57.45]
[1672911701312,13.29,13.07,13.063,57.45]
[1672911702872,13.29,13.07,13.064,20.0]
[1672911703731,13.29,13.07,13.066,20.0]
[1672911703929,169.9858,13.075,13.066,20.0]
[1672911704141,59.82,13.075,13.066,20.0]
[1672911705600,59.82,13.075,13.065,57.45]
[1672911705819,13.29,13.07,13.063,57.45]
[1672911706149,13.29,13.07,13.062,110.9537]
[1672911708264,13.29,13.07,13.064,20.0]
[1672911710682,20.0,13.075,13.064,20.0]
[1672911710989,39.82,13.074,13.066,20.0]
[1672911711196,20.0,13.073,13.065,57.45]
[1672911711385,13.29,13.07,13.064,77.45]
[1672911712055,13.29,13.07,13.064,57.45]
[1672911715102,20.0,13.073,13.065,20.0]
[1672911715312,20.0,13.074,13.065,20.0]
[1672911717640,13.21,13.07,13.064,57.45]
[1672911717943,13.21,13.07,13.064,20.0]
[1672911719527,39.83,13.073,13.064,20.0]
[1672911719837,20.0,13.072,13.064,20.0]
[1672911720044,20.0,13.074,13.064,20.0]
[1672911720256,20.0,13.074,13.063,57.45]
[1672911721203,20.0,13.074,13.062,110.9537]
[1672911721731,20.0,13.074,13.064,20.0]
[1672911722467,20.0,13.074,13.063,57.45]
[1672911723615,20.0,13.074,13.064,20.0]
[1672911726654,59.82,13.075,13.066,20.0]
[1672911727394,20.0,13.075,13.066,20.0]
[1672911729701,20.0,13.075,13.065,57.45]
[1672911729913,59.83,13.075,13.065,57.45]
[1672911730337,59.83,13.075,13.063,57.45]
[1672911730553,59.83,13.075,13.064,20.0]
[1672911733088,20.0,13.075,13.064,20.0]
[1672911733294,20.0,13.075,13.065,57.45]
[1672911733499,20.0,13.075,13.066,20.0]
[1672911734978,39.83,13.074,13.065,57.45]
[1672911735291,20.0,13.073,13.065,57.45]
[1672911735509,20.0,13.075,13.065,57.45]
[1672911735717,59.82,13.075,13.065,57.45]
[1672911736343,59.82,13.075,13.064,77.45]
[1672911737287,59.82,13.075,13.064,57.45]
[1672911737499,59.82,13.075,13.062,110.9537]
[1672911737696,13.23,13.07,13.062,110.9537]
[1672911738651,13.23,13.07,13.063,57.45]
[1672911740111,13.23,13.07,13.062,110.9537]
[1672911740329,13.23,13.07,13.063,77.45]
[1672911740657,13.23,13.07,13.063,57.45]
[1672911741390,13.23,13.07,13.061,57.46]
[1672911741590,13.23,13.07,13.061,20.0]
[1672911742109,13.23,13.07,13.062,57.46]
[1672911742851,20.0,13.068,13.054,112.0652]
[1672911743053,39.84,13.067,13.054,112.0652]
[1672911743263,20.0,13.066,13.054,112.0652]
[1672911743475,39.82,13.065,13.054,112.0652]
[1672911743681,20.0,13.064,13.054,112.0652]
[1672911743902,39.82,13.063,13.054,112.0652]
[1672911744108,20.0,13.062,13.054,112.0652]
[1672911745063,20.0,13.064,13.054,112.0652]
[1672911745282,39.82,13.063,13.054,112.0652]
[1672911745472,20.0,13.062,13.054,112.0652]
[1672911746229,20.0,13.064,13.054,112.0652]
[1672911746452,39.82,13.063,13.054,112.0652]
[1672911746647,20.0,13.062,13.054,112.0652]
[1672911747489,20.0,13.064,13.054,112.0652]
[1672911747699,39.82,13.063,13.054,112.0652]
[1672911747926,20.0,13.062,13.054,112.0652]
[1672911748542,13.22,13.06,13.054,112.0652]
[1672911751397,13.22,13.06,13.049,57.52]
[1672911752131,13.22,13.06,13.049,25.80004]
[1672911752344,13.22,13.06,13.049,57.52]
[1672911756531,13.22,13.06,13.047,173.9095]
[1672911756743,13.22,13.06,13.048,20.0]
[1672911756950,13.22,13.06,13.05,20.0]
[1672911757156,13.22,13.06,13.051,57.51]
[1672911762413,13.22,13.06,13.05,77.51]
[1672911766112,13.22,13.06,13.05,20.0]
[1672911767261,13.22,13.06,13.052,20.0]
[1672911767695,13.22,13.06,13.053,57.5]
[1672911768429,13.22,13.06,13.052,20.0]
[1672911770961,13.22,13.06,13.053,57.5]
[1672911772842,6.68,13.06,13.053,57.5]
[1672911773039,6.68,13.06,13.052,20.0]
[1672911774315,6.68,13.06,13.053,57.5]
[1672911775685,6.68,13.06,13.052,20.0]
[1672911775912,6.68,13.06,13.054,20.0]
[1672911777250,6.68,13.06,13.052,20.0]
[1672911779153,6.68,13.06,13.054,20.0]
[1672911780415,6.68,13.06,13.053,57.5]
[1672911781135,6.68,13.06,13.052,20.0]
[1672911781881,6.68,13.06,13.054,20.0]
[1672911782418,6.68,13.06,13.053,57.5]
[1672911782621,6.68,13.06,13.052,20.0]
[1672911785889,6.68,13.06,13.054,20.0]
[1672911787588,6.68,13.06,13.055,57.49]
[1672911788103,6.68,13.06,13.053,57.5]
[1672911790505,20.0,13.062,13.054,20.0]
[1672911790728,20.0,13.066,13.056,20.0]
[1672911795252,20.0,13.067,13.056,20.0]
[1672911795650,57.44,13.066,13.057,57.48]
[1672911795860,20.0,13.065,13.057,57.48]
[1672911796177,20.0,13.065,13.056,20.0]
[1672911796385,20.0,13.066,13.056,20.0]
[1672911802596,20.0,13.067,13.057,57.48]
[1672911803458,6.67,13.07,13.057,57.48]
[1672911803767,6.67,13.07,13.058,20.0]
[1672911803982,6.67,13.07,13.06,20.0]
[1672911804298,6.67,13.07,13.061,57.46]
[1672911808273,33.45,13.07,13.06,57.47]
[1672911808485,77.43,13.069,13.056,57.48]
[1672911809651,20.0,13.068,13.056,57.48]
[1672911809882,77.43,13.069,13.056,57.48]
[1672911809883,77.44,13.067,13.056,57.48]
[1672911810079,20.0,13.066,13.056,77.48]
[1672911810814,20.0,13.068,13.056,57.48]
[1672911813869,57.44,13.067,13.056,57.48]
[1672911814186,20.0,13.066,13.056,57.48]
[1672911816505,80.83715935,13.066,13.056,57.48]
[1672911817556,80.83715935,13.066,13.056,77.48]
[1672911818700,80.83715935,13.066,13.057,20.0]
[1672911818915,80.83715935,13.066,13.058,57.48]
[1672911819116,20.0,13.066,13.058,57.48]
[1672911819330,20.0,13.068,13.058,57.48]
[1672911819753,20.0,13.068,13.059,20.0]
[1672911820266,33.45,13.07,13.061,20.0]
[1672911820486,6.67,13.07,13.061,20.0]
[1672911821262,6.67,13.07,13.063,20.0]
[1672911822516,6.67,13.07,13.062,57.46]
[1672911822719,6.67,13.07,13.061,20.0]
[1672911823439,6.67,13.07,13.06,57.47]
[1672911823672,33.39,13.07,13.06,57.47]
[1672911823886,33.39,13.07,13.059,77.47]
[1672911825671,33.39,13.07,13.059,57.47]
[1672911826716,20.0,13.069,13.059,57.47]
[1672911826917,77.43,13.068,13.056,57.48]
[1672911827136,134.94150061,13.068,13.056,57.48]
[1672911828188,77.51150061,13.068,13.056,77.48]
[1672911828384,77.51150061,13.068,13.056,57.48]
[1672911829648,20.0,13.066,13.054,57.49]
[1672911829860,20.0,13.065,13.053,57.5]
[1672911830286,20.0,13.065,13.057,20.0]
[1672911830498,20.0,13.066,13.056,57.48]
[1672911840414,20.0,13.068,13.056,57.48]
[1672911840593,20.0,13.065,13.056,57.48]
[1672911841553,20.0,13.066,13.056,57.48]
[1672911842523,20.0,13.067,13.056,57.48]
[1672911849434,20.0,13.067,13.057,20.0]
[1672911849644,20.0,13.068,13.059,20.0]
[1672911850396,20.0,13.068,13.058,57.48]
[1672911850714,20.0,13.068,13.057,57.48]
[1672911854689,20.0,13.068,13.057,20.0]
[1672911854905,20.0,13.068,13.058,57.48]
[1672911855868,20.0,13.068,13.057,57.48]
[1672911856605,57.44,13.067,13.056,57.48]
[1672911856797,57.44,13.067,13.054,57.49]
[1672911856798,20.0,13.066,13.054,57.49]
[1672911857007,6.68,13.06,13.053,57.5]
[1672911858388,6.68,13.06,13.051,57.51]
[1672911859217,6.68,13.06,13.05,57.51]
[1672911859426,20.0,13.059,13.049,57.52]
[1672911859632,20.0,13.058,13.044,57.54]
[1672911859841,20.0,13.057,13.044,57.54]
[1672911860080,20.0,13.057,13.045,20.0]
[1672911860390,20.0,13.057,13.046,57.53]
[1672911860695,20.0,13.057,13.047,20.0]
[1672911862173,20.0,13.058,13.047,20.0]
[1672911862706,20.0,13.058,13.048,57.52]
[1672911863309,20.0,13.058,13.045,20.0]
[1672911863310,20.0,13.058,13.046,57.53]
[1672911866161,20.0,13.058,13.046,20.0]
[1672911866368,20.0,13.058,13.047,57.52]
[1672911866779,71.21516728,13.058,13.047,57.52]
[1672911867121,130.94721762,13.058,13.047,57.52]
[1672911868049,71.21516728,13.058,13.047,57.52]
[1672911868796,20.0,13.058,13.047,57.52]
[1672911868983,20.0,13.059,13.047,57.52]
[1672911870793,57.48,13.058,13.047,57.52]
[1672911870988,20.0,13.057,13.047,57.52]
[1672911871619,20.0,13.058,13.047,57.52]
[1672911872691,20.0,13.058,13.046,20.0]
[1672911872900,20.0,13.058,13.047,57.52]
[1672911873305,20.0,13.058,13.046,20.0]
[1672911873514,20.0,13.058,13.047,57.52]
[1672911874053,20.0,13.058,13.046,20.0]
[1672911874897,20.0,13.058,13.047,57.52]
[1672911875105,71.21516728,13.058,13.047,57.52]
[1672911878568,71.21516728,13.058,13.046,20.0]
[1672911878773,71.21516728,13.058,13.047,57.52]
[1672911880973,130.94721762,13.058,13.045,57.53]
[1672911883398,130.94721762,13.058,13.044,57.54]
[1672911883613,20.0,13.056,13.044,57.54]
[1672911883816,20.0,13.055,13.044,57.54]
[1672911884457,20.0,13.056,13.045,20.0]
[1672911884669,20.0,13.056,13.046,57.53]
[1672911885102,77.48,13.057,13.046,57.53]
[1672911885320,0.12,13.056,13.046,57.53]
[1672911885526,0.12,13.056,13.045,57.53]
[1672911887322,20.0,13.057,13.045,57.53]
[1672911890048,20.0,13.057,13.045,20.0]
[1672911890271,20.0,13.057,13.046,57.53]
[1672911890454,20.12,13.057,13.046,57.53]
[1672911890875,20.12,13.057,13.045,20.0]
[1672911891101,20.12,13.057,13.046,57.53]
[1672911891426,131.06721762,13.057,13.044,57.54]
[1672911894569,57.48,13.056,13.044,57.54]
[1672911894892,20.0,13.055,13.044,57.54]
[1672911895082,0.12,13.055,13.044,57.54]
[1672911896039,6.68,13.05,13.044,57.54]
[1672911898668,71.21516728,13.057,13.044,77.54]
[1672911898874,71.21516728,13.057,13.045,20.0]
[1672911899084,71.21516728,13.057,13.046,57.53]
[1672911900042,128.69516728,13.057,13.046,57.53]
[1672911900236,71.33516728,13.057,13.046,57.53]
[1672911900654,57.48,13.056,13.045,57.53]
[1672911900880,20.0,13.055,13.045,57.53]
[1672911902437,20.0,13.056,13.045,57.53]
[1672911902650,77.48,13.056,13.044,77.54]
[1672911902980,0.12,13.055,13.044,77.54]
[1672911903380,6.68,13.05,13.044,77.54]
[1672911903589,6.68,13.05,13.044,57.54]
[1672911903824,6.68,13.05,13.043,117.9]
[1672911904986,6.8,13.05,13.043,117.9]
[1672911905371,6.68,13.05,13.044,20.0]
[1672911905585,0.12,13.054,13.044,20.0]
[1672911905806,20.0,13.054,13.044,20.0]
[1672911906446,20.0,13.054,13.046,20.0]
[1672911907288,20.0,13.054,13.044,77.54]
[1672911907814,6.68,13.05,13.044,57.54]
[1672911908011,6.68,13.05,13.043,117.9]
[1672911908545,6.8,13.05,13.043,117.9]
[1672911911399,6.8,13.05,13.039,57.56]
[1672911911604,6.8,13.05,13.039,170.9261]
[1672911912656,6.8,13.05,13.04,20.0]
[1672911912860,6.8,13.05,13.041,171.9547]
[1672911913801,6.8,13.05,13.041,114.4047]
[1672911916321,6.8,13.05,13.043,20.0]
[1672911916742,6.8,13.05,13.042,57.55]
[1672911918628,6.8,13.05,13.041,114.4047]
[1672911920216,6.8,13.05,13.04,57.56]
[1672911920411,83.33947422,13.05,13.037,57.57]
[1672911920624,48.56625,13.038,13.035,57.58]
[1672911922014,0.11477028,13.035,13.031,57.59]
[1672911926213,0.11477028,13.035,13.03,108.6317]
[1672911926656,0.11477028,13.035,13.032,20.0]
[1672911926867,0.11477028,13.035,13.031,57.59]
[1672911927059,0.11477028,13.035,13.031,57.48543917]
[1672911927270,0.11477028,13.035,13.03,108.6317]
[1672911936316,0.11477028,13.035,13.028,57.61]
[1672911936526,0.11477028,13.035,13.026,165.9434]
[1672911936731,0.11477028,13.035,13.028,57.61]
[1672911936938,0.11477028,13.035,13.027,116.9395]
[1672911937152,59.8795081,13.035,13.024,57.63]
[1672911937363,20.0,13.034,13.023,57.63]
[1672911938307,79.76473782,13.034,13.023,57.63]
[1672911938647,136.81221187,13.034,13.022,57.63]
[1672911939046,194.39221187,13.034,13.021,57.64]
[1672911939457,20.12,13.033,13.021,57.64]
[1672911939680,20.0,13.032,13.021,57.64]
[1672911940108,20.12,13.032,13.021,57.64]
[1672911940417,79.88473782,13.032,13.021,57.64]
[1672911940636,79.76473782,13.032,13.022,20.0]
[1672911940947,79.76473782,13.032,13.023,57.63]
[1672911941383,79.88473782,13.032,13.023,57.63]
[1672911942215,79.88473782,13.032,13.022,57.63]
[1672911942427,79.88473782,13.032,13.021,57.64]
[1672911942611,79.88473782,13.032,13.022,20.0]
[1672911946212,79.88473782,13.032,13.021,77.64]
[1672911946425,6.68,13.03,13.021,57.64]
[1672911946626,6.68,13.03,13.02,59.9471]
[1672911947052,6.68,13.03,13.02,117.5871]
[1672911947782,66.44473782,13.03,13.02,117.5871]
[1672911948098,66.56473782,13.03,13.02,117.5871]
[1672911948731,66.56473782,13.03,13.02,59.9471]
[1672911951561,123.61221187,13.03,13.02,59.9471]
[1672911952614,57.6,13.029,13.02,59.9471]
[1672911952950,117.36473782,13.029,13.02,59.9471]
[1672911953354,0.12,13.028,13.02,59.9471]
[1672911954942,0.12,13.028,13.017,57.66]
[1672911955146,57.16747405,13.028,13.016,169.5886]
[1672911955562,57.16747405,13.028,13.016,111.9286]
[1672911955784,116.81221187,13.028,13.016,111.9286]
[1672911955992,57.73,13.027,13.016,111.9286]
[1672911956409,57.04747405,13.027,13.014,57.67]
[1672911956628,20.12,13.026,13.014,57.67]
[1672911958201,20.12,13.026,13.014,77.67]
[1672911958947,0.12,13.026,13.015,20.0]
[1672911959148,57.04747405,13.027,13.016,57.66]
[1672911959782,57.16747405,13.027,13.016,57.66]
[1672911960182,57.16747405,13.027,13.017,20.0]
[1672911960393,57.16747405,13.027,13.018,57.65]
[1672911960622,57.04747405,13.027,13.019,20.0]
[1672911961040,6.66,13.03,13.019,20.0]
[1672911961757,121.30747405,13.03,13.02,57.64]
[1672911961965,0.12,13.029,13.019,20.0]
[1672911963441,6.66,13.03,13.02,57.64]
[1672911963649,6.66,13.03,13.019,20.0]
[1672911963650,0.12,13.029,13.019,20.0]
[1672911965442,0.12,13.029,13.02,57.64]
[1672911966608,0.12,13.029,13.018,57.65]
[1672911967646,0.12,13.029,13.017,57.66]
[1672911968060,20.12,13.029,13.017,57.66]
[1672911968271,0.12,13.029,13.016,57.66]
[1672911968606,56.50029416,13.029,13.016,57.66]
[1672911969655,20.0,13.028,13.016,57.66]
[1672911970067,56.38029416,13.027,13.016,57.66]
[1672911970277,20.0,13.026,13.014,57.67]
[1672911970494,20.0,13.025,13.014,57.67]
[1672911970681,6.68,13.02,13.014,57.67]
[1672911972062,6.68,13.02,13.011,57.68]
[1672911976365,6.68,13.02,13.011,77.68]
[1672911976780,6.68,13.02,13.011,57.68]
[1672911977226,63.06029416,13.02,13.011,57.68]
[1672911979747,20.0,13.019,13.011,25.235]
[1672911979936,20.0,13.019,13.007,57.7]
[1672911980151,56.38029416,13.018,13.007,57.7]
[1672911981529,105.45036532,13.018,13.007,57.7]
[1672911982153,56.38029416,13.017,13.007,57.7]
[1672911982571,52.62340449,13.016,13.007,57.7]
[1672911982783,98.44065001,13.016,13.006,57.71]
[1672911983106,109.9378224,13.015,13.006,57.71]
[1672911983422,155.75506792,13.015,13.006,57.71]
[1672911983636,109.9378224,13.014,13.006,57.71]
[1672911984039,52.62340449,13.013,13.006,57.71]
[1672911984364,109.9378224,13.013,13.006,57.71]
[1672911984769,109.9378224,13.012,13.006,57.71]
[1672911986470,109.9378224,13.011,13.006,57.71]
[1672911986883,57.31441791,13.01,13.006,57.71]
[1672911987947,57.31441791,13.01,13.006,38.9459]
[1672911988145,116.09115573,13.01,13.0,57.73]
[1672911988668,57.31441791,13.009,13.006,57.71]
[1672911989945,116.09115573,13.009,13.001,57.73]
[1672911990165,116.09115573,13.009,13.006,57.71]
[1672911990362,116.09115573,13.009,13.001,57.73]
[1672911990775,57.31441791,13.009,13.006,57.71]
[1672911990994,58.77673782,13.014,13.006,57.71]
[1672911991511,62.08108458,13.013,13.006,57.71]
[1672911991944,58.77673782,13.012,13.006,57.71]
[1672911992346,120.8578224,13.012,13.006,57.71]
[1672911992781,58.77673782,13.011,13.006,57.71]
[1672911993198,62.08108458,13.012,13.006,57.71]
[1672911993406,58.77673782,13.017,13.006,80.12737149]
[1672911993815,58.77673782,13.017,13.006,57.71]
[1672911994030,62.08108458,13.016,13.006,57.71]
[1672911994256,62.08108458,13.016,13.006,176.9282]
[1672911994579,58.77673782,13.015,13.006,176.9282]
[1672911994972,62.08108458,13.014,13.006,176.9282]
[1672911995397,120.8578224,13.014,13.006,176.9282]
[1672911995827,62.08108458,13.013,13.006,57.71]
[1672911996345,120.8578224,13.013,13.006,57.71]
[1672911996552,120.8578224,13.013,13.005,55.888429]
[1672911996777,62.08108458,13.012,13.005,55.888429]
[1672911997087,58.77673782,13.011,13.005,55.888429]
[1672911997411,120.8578224,13.011,13.005,55.888429]
[1672911998358,120.8578224,13.011,13.006,57.71]
[1672911999506,62.08108458,13.011,13.006,57.71]
[1672912000328,62.08108458,13.011,13.005,55.888429]
[1672912000541,62.08108458,13.011,13.006,57.71]
[1672912000975,62.08108458,13.011,13.005,55.888429]
[1672912001188,62.08108458,13.011,13.006,57.71]
[1672912001402,62.08108458,13.011,13.007,20.0]
[1672912001919,58.77673782,13.013,13.007,20.0]
[1672912002761,62.08108458,13.015,13.007,20.0]
[1672912003187,58.77673782,13.018,13.007,20.0]
[1672912003610,119.73108458,13.019,13.007,20.0]
[1672912003823,20.0,13.037,13.007,20.0]
[1672912003824,57.62,13.025,13.008,57.7]
[1672912004034,20.0,13.024,13.008,57.7]
[1672912004449,20.0,13.025,13.01,6.68]
[1672912004670,57.63,13.024,13.012,20.0]
[1672912004869,20.0,13.023,13.012,20.0]
[1672912005509,57.61,13.027,13.013,20.0]
[1672912005715,6.66,13.03,13.013,20.0]
[1672912005716,57.6,13.029,13.014,57.67]
[1672912006042,119.68108458,13.029,13.015,20.0]
[1672912006453,119.68108458,13.029,13.016,57.66]
[1672912006669,119.68108458,13.029,13.017,20.0]
[1672912010119,119.68108458,13.029,13.011,77.68]
[1672912010338,119.68108458,13.029,13.011,20.0]
[1672912010339,20.0,13.028,13.011,20.0]
[1672912010555,20.0,13.026,13.011,20.0]
[1672912010767,77.62,13.025,13.011,20.0]
[1672912010963,77.62,13.025,13.01,20.0]
[1672912010964,139.70108458,13.025,13.01,20.0]
[1672912011296,62.20108458,13.024,13.009,57.69]
[1672912011501,77.63,13.023,13.008,20.0]
[1672912011695,139.71108458,13.023,13.008,20.0]
[1672912011906,62.08108458,13.022,13.008,20.0]
[1672912012221,57.64,13.021,13.007,77.7]
[1672912012437,6.68,13.02,13.007,57.7]
[1672912012671,57.65,13.019,13.006,167.2562]
[1672912012879,57.65,13.019,13.007,20.0]
[1672912014045,64.56,13.02,13.009,20.0]
[1672912016449,64.56,13.02,13.007,20.0]
[1672912017196,64.56,13.02,13.007,77.7]
[1672912018363,126.40108458,13.02,13.006,109.5462]
[1672912018575,126.64108458,13.02,13.006,109.5462]
[1672912019836,153.23108458,13.02,13.005,113.598429]
[1672912020023,153.23108458,13.02,13.005,55.888429]
[1672912020238,153.23108458,13.02,13.005,113.598429]
[1672912020443,153.23108458,13.02,13.005,55.888429]
[1672912020648,153.23108458,13.02,13.005,113.598429]
[1672912020882,197.73050865,13.02,13.005,113.598429]
[1672912021396,197.73050865,13.02,13.005,55.888429]
[1672912021604,60.83272751,13.019,13.005,55.888429]
[1672912021815,57.65,13.018,13.005,55.888429]
[1672912022016,20.0,13.017,13.005,55.888429]
[1672912022226,57.66,13.016,13.005,55.888429]
[1672912022553,164.24050865,13.016,13.005,55.888429]
[1672912022757,106.75384199,13.015,13.006,57.71]
[1672912022968,106.75384199,13.015,13.005,55.888429]
[1672912023194,106.75384199,13.014,13.005,55.888429]
[1672912023498,44.67275741,13.014,13.005,55.888429]
[1672912023716,62.08108458,13.013,13.007,20.0]
[1672912024146,62.08108458,13.013,13.005,55.888429]
[1672912024467,62.08108458,13.013,13.005,113.598429]
[1672912025727,48.83275741,13.017,13.006,20.0]
[1672912025944,62.08108458,13.018,13.006,20.0]
[1672912026446,62.08108458,13.018,13.008,20.0]
[1672912027930,62.08108458,13.018,13.006,57.71]
[1672912028336,62.08108458,13.018,13.005,55.888429]
[1672912028337,77.66,13.017,13.005,55.888429]
[1672912028668,62.08108458,13.016,13.005,55.888429]
[1672912028886,20.0,13.015,13.005,55.888429]
[1672912029076,68.83275741,13.015,13.005,55.888429]
[1672912029287,110.91384199,13.014,13.005,55.888429]
[1672912029913,62.08108458,13.013,13.005,55.888429]
[1672912030127,110.91384199,13.013,13.001,57.73]
[1672912030445,6.68,13.01,13.002,20.0]
[1672912030775,62.08108458,13.009,13.002,20.0]
[1672912030966,62.08108458,13.009,13.001,20.0]
[1672912031178,62.08108458,13.009,13.002,57.72]
[1672912031386,62.08108458,13.009,13.003,20.0]
[1672912032326,115.85384199,13.009,13.002,20.0]
[1672912032535,173.54384199,13.009,12.983,39.34225684]
[1672912032745,173.54384199,13.009,12.981,29.4497919]
[1672912032746,6.68,13.0,12.981,29.4497919]
[1672912032986,65.97750345,12.992,12.981,29.4497919]
[1672912033169,65.97750345,12.992,12.981,21.5667919]
[1672912033170,110.8143801,12.986,12.981,21.5667919]
[1672912033499,57.8,12.985,12.981,21.5667919]
[1672912033725,57.8,12.985,12.981,20.5667919]